bitfinex/quotes_SOLUSD_20260220
["timestamp","ask_amount","ask_price","bid_price","bid_amount"]
[1771553227695,15.71923127,83.42,83.4,2.93192201]
[1771553227873,0.06535856,83.419,83.4,2.93192201]
[1771553228195,0.06535856,83.419,83.389,2.93192201]
[1771553229173,0.06535856,83.419,83.391,2.93192201]
[1771553230007,15.71923127,83.42,83.391,2.93192201]
[1771553231294,0.08203188,83.424,83.391,2.93192201]
[1771553231476,3.73158217,83.42,83.391,2.93192201]
[1771553232393,11.98767666,83.419,83.391,2.93192201]
[1771553232590,12.08600103,83.419,83.391,2.93192201]
[1771553233005,12.08600103,83.419,83.393,2.93192201]
[1771553233179,11.98704831,83.424,83.393,2.93192201]
[1771553233371,0.10633054,83.423,83.393,2.93192201]
[1771553236982,0.10633054,83.423,83.394,11.99127035]
[1771553237183,0.10633054,83.423,83.395,2.93192201]
[1771553238999,0.15247296,83.419,83.381,2.93192201]
[1771553239205,0.15247296,83.409,83.381,2.93192201]
[1771553240211,0.15247296,83.409,83.381,11.99313992]
[1771553240400,0.15247296,83.409,83.382,2.93192201]
[1771553240708,0.15985717,83.399,83.372,11.99432419]
[1771553240900,0.15985717,83.399,83.373,2.93192201]
[1771553241398,11.99055144,83.399,83.373,2.93192201]
[1771553241605,0.16715658,83.398,83.373,2.93192201]
[1771553243210,0.16715658,83.398,83.36,3.73158217]
[1771553243211,0.16715658,83.398,83.375,2.93192201]
[1771553243587,0.18150482,83.403,83.375,2.93192201]
[1771553245908,0.19552536,83.401,83.375,2.93192201]
[1771553246992,0.20241507,83.399,83.37,11.99466552]
[1771553247307,0.20241507,83.399,83.371,2.93192201]
[1771553249605,0.22261304,83.397,83.373,2.93192201]
[1771553249898,0.22261304,83.397,83.342,9.99191637]
[1771553249899,0.22261304,83.389,83.351,2.93192201]
[1771553250303,0.22919163,83.379,83.352,2.93192201]
[1771553251417,0.22919163,83.379,83.34,3.73158217]
[1771553251701,101.92090937,83.398,83.321,12.00177626]
[1771553251702,0.23569466,83.357,83.321,12.00177626]
[1771553251903,0.23569466,83.348,83.32,3.13192201]
[1771553252100,0.242123,83.353,83.321,2.93192201]
[1771553252806,30.0,83.352,83.321,2.93192201]
[1771553253703,30.2484775,83.352,83.321,2.93192201]
[1771553253900,42.24589042,83.352,83.322,12.00163222]
[1771553254102,42.25217193,83.352,83.323,2.93192201]
[1771553256011,30.25475901,83.352,83.325,2.93192201]
[1771553256992,30.0,83.352,83.327,3.04340229]
[1771553257413,30.2791718,83.352,83.327,3.04340229]
[1771553258414,30.2791718,83.352,83.326,12.00105609]
[1771553258415,30.0,83.352,83.33,3.73158217]
[1771553258617,30.0,83.352,83.331,3.04340229]
[1771553259506,30.0,83.352,83.333,3.04340229]
[1771553260004,3.73158217,83.36,83.333,3.04340229]
[1771553260205,0.29675515,83.359,83.333,3.04340229]
[1771553261109,11.99630513,83.359,83.333,3.04340229]
[1771553261310,0.30248215,83.358,83.333,3.04340229]
[1771553261906,0.30248215,83.358,83.334,11.999904]
[1771553262113,0.30248215,83.358,83.334,15.04330629]
[1771553262526,0.30248215,83.358,83.335,3.04340229]
[1771553266617,0.30248215,83.358,83.337,3.04340229]
[1771553268320,3.73809932,83.36,83.339,3.04340229]
[1771553268630,4.0788703,83.36,83.339,3.04340229]
[1771553269029,0.34599241,83.359,83.339,3.04340229]
[1771553274731,3.73809932,83.34,83.326,3.04340229]
[1771553276840,0.37121362,83.344,83.328,3.04340229]
[1771553279419,3.73809932,83.34,83.323,3.04340229]
[1771553281424,3.73809932,83.34,83.325,3.04340229]
[1771553283523,0.37121362,83.344,83.327,2.93192201]
[1771553284546,0.42182907,83.349,83.327,2.93192201]
[1771553286339,3.73809932,83.34,83.327,2.93192201]
[1771553291644,3.73809932,83.34,83.328,12.00076804]
[1771553291852,3.73809932,83.34,83.329,2.93192201]
[1771553294337,3.73809932,83.34,83.331,2.93192201]
[1771553295345,0.47018278,83.349,83.331,2.93192201]
[1771553298963,3.73809932,83.35,83.331,2.93192201]
[1771553299138,0.48486738,83.349,83.331,2.93192201]
[1771553300350,30.27178597,83.369,83.323,2.93192201]
[1771553300351,3.73809932,83.34,83.323,2.93192201]
[1771553302459,0.49544399,83.347,83.325,2.93192201]
[1771553305057,0.49544399,83.347,83.326,12.00105609]
[1771553305264,0.49544399,83.347,83.327,2.93192201]
[1771553310264,0.49544399,83.347,83.329,2.93192201]
[1771553326758,3.73936136,83.33,83.3,0.2]
[1771553326957,3.73936136,83.31,83.3,0.2]
[1771553327179,3.73936136,83.32,83.3,0.2]
[1771553327377,3.73936136,83.31,83.3,0.2]
[1771553327879,3.73936136,83.34,83.301,12.0046578]
[1771553328261,3.06021164,83.345,83.31,3.73936136]
[1771553328680,3.06021164,83.345,83.313,3.14201153]
[1771553330964,3.06021164,83.345,83.315,3.14201153]
[1771553331282,3.06021164,83.349,83.315,3.14201153]
[1771553333774,3.06021164,83.349,83.317,3.14201153]
[1771553333982,3.73936136,83.34,83.317,3.14201153]
[1771553334583,6.799573,83.34,83.317,3.14201153]
[1771553335286,3.73936136,83.34,83.319,3.14201153]
[1771553335586,3.06021164,83.339,83.319,3.14201153]
[1771553336279,3.06021164,83.338,83.319,3.14201153]
[1771553336477,3.73936136,83.33,83.313,15.14488339]
[1771553336784,3.06021164,83.329,83.314,3.14201153]
[1771553337673,3.06021164,83.329,83.313,12.00287186]
[1771553337674,3.06021164,83.329,83.307,3.14201153]
[1771553337882,3.73936136,83.32,83.3,0.2]
[1771553338178,3.73936136,83.31,83.271,12.00898271]
[1771553338384,3.73936136,83.31,83.272,3.14201153]
[1771553340485,12.00350502,83.309,83.273,12.00869429]
[1771553340689,2.6953023,83.308,83.274,3.14201153]
[1771553340989,3.06021164,83.299,83.274,3.14201153]
[1771553341474,3.73936136,83.3,83.274,3.14201153]
[1771553341864,3.06021164,83.299,83.272,12.00878614]
[1771553342062,3.06021164,83.289,83.27,0.2]
[1771553342266,12.00242033,83.317,83.273,3.14954858]
[1771553342489,3.14204652,83.309,83.273,3.14954858]
[1771553343472,3.14204652,83.309,83.274,12.00855008]
[1771553343672,3.14204652,83.309,83.275,3.14954858]
[1771553345988,3.14204652,83.299,83.277,3.14954858]
[1771553346293,3.73936136,83.29,83.277,3.14954858]
[1771553346472,3.14204652,83.299,83.271,3.14954858]
[1771553346674,42.01277187,83.308,83.27,0.2]
[1771553346675,3.14204652,83.289,83.27,0.2]
[1771553347177,3.14204652,83.289,83.27,3.35075881]
[1771553348398,3.73936136,83.31,83.272,3.15075881]
[1771553348399,3.73936136,83.3,83.272,3.15075881]
[1771553348800,3.17460644,83.299,83.272,3.15075881]
[1771553348993,3.73936136,83.3,83.272,3.15075881]
[1771553349995,3.73936136,83.31,83.281,3.15075881]
[1771553350378,3.73936136,83.31,83.283,3.15075881]
[1771553350991,3.17460644,83.309,83.283,3.15075881]
[1771553351195,3.73936136,83.3,83.283,3.15075881]
[1771553352785,3.73936136,83.3,83.284,12.0071082]
[1771553353093,3.17460644,83.301,83.285,3.15075881]
[1771553353993,3.73936136,83.31,83.285,3.15075881]
[1771553354896,3.17460644,83.309,83.285,3.15075881]
[1771553355899,6.9139678,83.29,83.27,3.35075881]
[1771553356080,3.17460644,83.289,83.271,12.00898271]
[1771553356395,3.17460644,83.289,83.272,3.15075881]
[1771553356585,3.73936136,83.29,83.272,3.15075881]
[1771553357298,3.73936136,83.28,83.27,0.2]
[1771553358103,3.73936136,83.29,83.27,3.35075881]
[1771553359497,3.17460644,83.279,83.259,0.89002035]
[1771553359810,3.73936136,83.27,83.259,0.89002035]
[1771553362593,3.17460644,83.273,83.259,0.89002035]
[1771553362900,3.17460644,83.279,83.259,4.04077916]
[1771553363101,3.17460644,83.279,83.26,3.15075881]
[1771553363303,15.18243554,83.279,83.26,3.15075881]
[1771553364098,3.17460644,83.278,83.242,3.15075881]
[1771553364901,2.36788076,83.269,83.242,3.15075881]
[1771553365108,3.73936136,83.26,83.24,0.2]
[1771553365309,2.36866999,83.261,83.24,3.35075881]
[1771553365905,2.36866999,83.269,83.24,3.35075881]
[1771553366118,2.36866999,83.269,83.241,12.01331074]
[1771553366300,2.36866999,83.269,83.242,3.15075881]
[1771553370408,2.37225201,83.268,83.242,3.15075881]
[1771553371812,2.37225201,83.268,83.243,12.01302211]
[1771553372118,2.37225201,83.268,83.244,3.15075881]
[1771553373108,12.0095596,83.267,83.244,3.15075881]
[1771553373306,2.37376094,83.266,83.244,3.15075881]
[1771553377221,2.37616246,83.264,83.244,3.15075881]
[1771553379919,2.37708489,83.262,83.244,3.15075881]
[1771553385423,2.37708489,83.262,83.244,15.16362256]
[1771553385625,2.37708489,83.262,83.245,3.04621144]
[1771553386027,2.37708489,83.262,83.247,3.04621144]
[1771553386627,2.38015063,83.269,83.247,3.04621144]
[1771553387536,3.74643715,83.27,83.247,3.04621144]
[1771553387740,12.00707971,83.285,83.251,3.04621144]
[1771553387944,12.0078291,83.279,83.252,12.01172344]
[1771553388117,2.38098197,83.278,83.253,3.04621144]
[1771553391052,2.38098197,83.278,83.254,12.01143488]
[1771553391352,2.38098197,83.278,83.255,3.04621144]
[1771553392057,3.74643715,83.26,83.246,3.04621144]
[1771553392528,2.38258813,83.262,83.246,3.04621144]
[1771553394943,2.38258813,83.262,83.247,15.05865633]
[1771553395253,2.38374497,83.269,83.248,3.04621144]
[1771553396037,2.38412176,83.268,83.248,3.04621144]
[1771553400848,3.74643715,83.27,83.25,3.04621144]
[1771553401842,2.38594177,83.275,83.25,3.04621144]
[1771553402043,3.74643715,83.28,83.25,3.04621144]
[1771553402584,2.38629332,83.286,83.251,3.02729225]
[1771553403235,3.74643715,83.28,83.253,3.02729225]
[1771553405864,3.74643715,83.28,83.254,12.01143488]
[1771553406047,3.74643715,83.28,83.255,3.02729225]
[1771553408772,3.74643715,83.31,83.257,3.24271626]
[1771553408773,15.75272417,83.29,83.257,3.24271626]
[1771553409071,2.38928108,83.289,83.257,3.24271626]
[1771553409877,2.38928108,83.289,83.256,9.45870914]
[1771553412078,2.38928108,83.289,83.257,3.24271626]
[1771553415975,2.38928108,83.289,83.259,3.24271626]
[1771553416755,3.13546629,83.279,83.259,3.24271626]
[1771553420463,3.13546629,83.279,83.261,3.24271626]
[1771553421976,3.13546629,83.279,83.262,15.25299706]
[1771553423060,3.13546629,83.279,83.263,3.24271626]
[1771553426460,3.13546629,83.279,83.263,15.25274739]
[1771553428880,3.13546629,83.279,83.264,3.24271626]
[1771553431085,3.13546629,83.278,83.249,3.24271626]
[1771553431384,3.13546629,83.269,83.249,3.24271626]
[1771553432582,3.13546629,83.269,83.251,3.24271626]
[1771553434186,3.13546629,83.279,83.251,3.24271626]
[1771553434371,3.13546629,83.278,83.251,3.24271626]
[1771553435676,3.13546629,83.276,83.251,3.24271626]
[1771553435967,3.13546629,83.269,83.253,3.24271626]
[1771553442587,3.74643715,83.28,83.24,0.2]
[1771553442588,3.19220791,83.259,83.24,0.2]
[1771553442889,3.19220791,83.249,83.24,0.2]
[1771553450102,3.19220791,83.249,83.232,3.16769287]
[1771553450280,3.19220791,83.249,83.231,12.0146434]
[1771553452418,3.19220791,83.249,83.232,3.16769287]
[1771553453693,3.74736741,83.25,83.23,0.2]
[1771553453694,3.19220791,83.247,83.23,0.2]
[1771553454285,3.74736741,83.24,83.23,0.2]
[1771553454586,3.74736741,83.24,83.23,3.36769287]
[1771553456198,3.19220791,83.247,83.23,3.36769287]
[1771553459086,12.01230059,83.248,83.23,3.36769287]
[1771553460811,3.74736741,83.27,83.232,3.16769287]
[1771553461190,3.74736741,83.27,83.241,3.16769287]
[1771553461191,15.75659568,83.27,83.241,3.16769287]
[1771553462207,15.75659568,83.27,83.243,3.25569475]
[1771553463484,18.81640141,83.27,83.243,3.25569475]
[1771553464311,3.06232616,83.269,83.243,3.25569475]
[1771553464710,3.06232616,83.269,83.245,3.25569475]
[1771553465605,3.06481764,83.259,83.231,3.25569475]
[1771553465796,3.06481764,83.249,83.231,3.25569475]
[1771553466397,12.01230059,83.248,83.231,3.25569475]
[1771553470520,15.08931317,83.248,83.231,3.25569475]
[1771553470714,3.74736741,83.24,83.231,3.25569475]
[1771553470927,3.74736741,83.24,83.23,0.2]
[1771553471298,6.82633156,83.24,83.226,3.33930477]
[1771553471493,3.74736741,83.24,83.226,3.33930477]
[1771553474099,3.74736741,83.28,83.22,12.21619849]
[1771553474100,3.21424926,83.265,83.227,3.33930477]
[1771553474301,3.74736741,83.26,83.227,3.33930477]
[1771553474500,6.96161667,83.26,83.227,3.33930477]
[1771553474707,3.21424926,83.259,83.227,3.33930477]
[1771553476920,3.21424926,83.239,83.22,0.2]
[1771553478314,3.74736741,83.24,83.222,0.27789706]
[1771553479414,3.21424926,83.244,83.222,0.27789706]
[1771553480210,3.21424926,83.244,83.224,0.25791597]
[1771553482522,15.22640556,83.249,83.224,0.25791597]
[1771553482722,3.21424926,83.248,83.224,0.25791597]
[1771553483626,3.21424926,83.248,83.226,0.19412301]
[1771553484910,3.21424926,83.248,83.221,12.01619783]
[1771553485128,3.21424926,83.248,83.221,12.16900405]
[1771553485312,3.21424926,83.248,83.222,0.15280622]
[1771553489330,3.21424926,83.239,83.22,0.2]
[1771553489530,3.21424926,83.229,83.21,0.2]
[1771553489710,3.11538211,83.219,83.192,0.07298213]
[1771553490225,3.74736741,83.21,83.192,0.07298213]
[1771553490429,6.86274952,83.21,83.192,0.07298213]
[1771553493126,3.11538211,83.21,83.192,0.07298213]
[1771553493917,3.11538211,83.209,83.19,12.22064856]
[1771553494969,3.11538211,83.217,83.191,0.17825192]
[1771553495446,3.11538211,83.216,83.191,0.17825192]
[1771553496744,3.11538211,83.216,83.192,12.02038657]
[1771553496919,3.11538211,83.216,83.193,0.12445411]
[1771553498438,3.18126669,83.214,83.193,0.12445411]
[1771553500923,3.74736741,83.21,83.193,0.12445411]
[1771553501333,3.74736741,83.21,83.19,0.2]
[1771553501334,3.18126669,83.209,83.19,0.2]
[1771553501654,3.18126669,83.209,83.191,12.02053106]
[1771553504753,3.18126669,83.207,83.19,0.2]
[1771553506433,3.18126669,83.199,83.18,0.2]
[1771553506633,3.18126669,83.189,83.162,0.35801648]
[1771553506835,3.18126669,83.189,83.164,0.35801648]
[1771553511551,3.18126669,83.189,83.166,0.28173631]
[1771553513345,3.18126669,83.189,83.168,0.25288978]
[1771553515762,3.18126669,83.189,83.17,0.22470211]
[1771553520368,3.18126669,83.189,83.172,0.15701752]
[1771553532564,3.18126669,83.189,83.165,12.02428906]
[1771553539672,3.18126669,83.189,83.161,17.06689755]
[1771553539870,2.91424926,83.187,83.161,17.06689755]
[1771553544576,2.91424926,83.185,83.161,17.06689755]
[1771553545380,2.91424926,83.185,83.162,5.04209735]
[1771553546996,2.91424926,83.184,83.162,5.04209735]
[1771553547169,2.91424926,83.184,83.162,17.06679983]
[1771553551268,2.91424926,83.184,83.164,12.02443364]
[1771553557180,2.91424926,83.184,83.164,17.06653099]
[1771553562199,30.04833825,83.2,83.161,5.04209735]
[1771553562200,2.69365315,83.179,83.161,5.04209735]
[1771553563500,2.69365315,83.179,83.16,0.2]
[1771553565394,3.75162825,83.19,83.141,2.69552062]
[1771553565395,2.69365315,83.159,83.141,2.69552062]
[1771553566895,2.69365315,83.159,83.13,0.2]
[1771553566896,2.69365315,83.149,83.13,0.2]
[1771553567377,2.69365315,83.139,83.115,2.69552062]
[1771553570092,2.69365315,83.139,83.116,12.03137783]
[1771553570294,2.69365315,83.139,83.117,2.69552062]
[1771553572097,2.69365315,83.137,83.117,2.69552062]
[1771553572402,2.69365315,83.137,83.111,2.77947061]
[1771553572592,2.69365315,83.137,83.111,2.69552062]
[1771553572898,2.69365315,83.137,83.101,0.08394999]
[1771553572899,2.69365315,83.129,83.101,0.08394999]
[1771553573075,2.69365315,83.119,83.101,12.03344401]
[1771553573675,2.69365315,83.119,83.1,2.89552062]
[1771553575007,2.79164944,83.157,83.11,3.75569948]
[1771553575208,2.79164944,83.149,83.11,3.75569948]
[1771553575589,2.79164944,83.139,83.1,46.07359449]
[1771553575990,2.79164944,83.139,83.101,0.02886687]
[1771553577306,2.79164944,83.137,83.101,0.02886687]
[1771553580107,2.79164944,83.135,83.101,0.02886687]
[1771553581097,2.79164944,83.135,83.103,0.07769679]
[1771553582001,2.79164944,83.133,83.103,0.07769679]
[1771553583924,2.79164944,83.131,83.103,0.07769679]
[1771553584933,3.75569948,83.13,83.103,0.07769679]
[1771553585224,2.79164944,83.129,83.102,0.08394999]
[1771553586819,2.79164944,83.127,83.103,0.08394999]
[1771553587919,2.79164944,83.119,83.103,0.08394999]
[1771553588132,2.69164944,83.109,83.079,0.34118077]
[1771553588432,2.69164944,83.109,83.079,12.37778426]
[1771553588924,2.69164944,83.099,83.07,3.95569948]
[1771553589125,2.69164944,83.099,83.07,15.99365339]
[1771553590215,2.69164944,83.099,83.07,12.23795391]
[1771553591023,60.14944635,83.127,83.07,12.23795391]
[1771553591024,2.69164944,83.089,83.07,0.2]
[1771553591204,42.11894389,83.098,83.046,30.10355547]
[1771553591205,2.69164944,83.079,83.047,12.40021344]
[1771553591400,2.69164944,83.079,83.048,0.35883928]
[1771553591818,42.11894389,83.098,83.021,6.28580324]
[1771553591819,2.69164944,83.059,83.021,6.28580324]
[1771553592017,2.69164944,83.049,83.022,0.36459076]
[1771553592215,2.69164944,83.064,83.031,0.36459076]
[1771553592424,2.69164944,83.064,83.033,0.36459076]
[1771553592822,2.69164944,83.062,83.033,0.36459076]
[1771553593429,2.69164944,83.059,83.033,0.36459076]
[1771553594834,2.69164944,83.059,83.034,12.04325938]
[1771553596022,2.69164944,83.059,83.03,12.0438017]
[1771553598010,2.69164944,83.059,83.03,0.3962946]
[1771553598931,2.69164944,83.058,83.03,0.3962946]
[1771553600514,2.69164944,83.058,83.031,12.04369452]
[1771553601215,2.69164944,83.049,83.023,12.04472791]
[1771553601414,2.69164944,83.049,83.02,0.2]
[1771553601615,2.69164944,83.049,83.021,0.08394999]
[1771553602543,2.69164944,83.049,83.021,12.12909519]
[1771553603732,2.69164944,83.047,83.021,12.12909519]
[1771553604033,2.69164944,83.039,83.021,0.08394999]
[1771553604214,2.69164944,83.039,83.02,0.2]
[1771553607542,12.04195416,83.043,83.021,0.45631569]
[1771553607930,2.69164944,83.042,83.021,0.45631569]
[1771553609135,2.69164944,83.039,83.02,0.2]
[1771553616742,2.69164944,83.037,83.02,0.2]
[1771553617144,2.79210421,83.029,83.01,0.1]
[1771553617349,2.79210421,83.019,83.002,0.08394999]
[1771553617552,2.79210421,83.019,83.0,0.2]
[1771553618230,2.79210421,83.009,83.0,0.2]
[1771553618423,2.79210421,83.009,82.993,0.08394999]
[1771553620128,2.79210421,83.009,82.982,12.05077607]
[1771553621144,2.79210421,83.02,82.991,0.53429552]
[1771553622028,2.79210421,83.034,83.001,0.53902935]
[1771553623255,3.75569948,83.03,83.003,0.54370881]
[1771553623434,2.79210421,83.019,82.993,27.94920896]
[1771553623630,2.79210421,83.019,82.994,15.9]
[1771553624456,2.79210421,83.026,83.001,0.54833452]
[1771553625328,2.79210421,83.026,83.002,12.04790246]
[1771553627436,2.79210421,83.019,82.994,16.46189531]
[1771553627734,2.79210421,83.019,82.995,12.0489186]
[1771553628134,2.79210421,83.019,82.996,0.56631213]
[1771553628745,3.76775661,83.04,83.011,2.92035815]
[1771553628950,3.76775661,83.07,83.001,2.92035815]
[1771553628951,3.76775661,83.03,83.001,2.92035815]
[1771553629258,3.76775661,83.02,82.996,2.92035815]
[1771553629462,3.76775661,83.03,82.997,12.04862826]
[1771553629656,12.04253423,83.039,82.997,12.04862826]
[1771553629958,3.76775661,83.03,83.001,2.92035815]
[1771553630340,12.04253423,83.039,83.001,2.92035815]
[1771553630559,12.04020828,83.056,83.021,2.92035815]
[1771553630741,2.79210421,83.055,83.021,2.92035815]
[1771553631148,2.79210421,83.055,83.031,2.92035815]
[1771553631550,2.79210421,83.055,83.032,12.04354947]
[1771553631853,2.79210421,83.055,83.033,2.92035815]
[1771553632254,2.79210421,83.053,83.033,2.92035815]
[1771553632460,2.79210421,83.053,83.028,12.04410849]
[1771553633542,2.79210421,83.053,83.028,2.92035815]
[1771553636745,2.79210421,83.053,83.03,2.92035815]
[1771553637272,2.79210421,83.051,83.029,12.04398463]
[1771553638253,2.79210421,83.051,83.029,14.96434278]
[1771553639739,2.79210421,83.051,83.03,2.92035815]
[1771553640665,2.79210421,83.051,83.031,12.04369452]
[1771553641059,2.79210421,83.051,83.032,2.92035815]
[1771553641259,2.79210421,83.059,83.032,2.92035815]
[1771553642266,2.93220838,83.073,83.041,2.84684317]
[1771553642471,3.76775661,83.1,83.04,3.76775661]
[1771553642472,2.97451952,83.109,83.06,3.76775661]
[1771553642655,2.97451952,83.099,83.06,3.76775661]
[1771553643354,2.97451952,83.099,83.07,3.76775661]
[1771553644650,2.97451952,83.107,83.071,42.13263352]
[1771553644849,2.97451952,83.107,83.08,3.76775661]
[1771553645366,3.76775661,83.1,83.071,12.03789529]
[1771553645559,2.97451952,83.099,83.071,12.03789529]
[1771553647357,12.03239119,83.109,83.08,3.76775661]
[1771553647566,3.17451952,83.11,83.08,3.76775661]
[1771553648264,2.97451952,83.108,83.08,3.76775661]
[1771553649674,2.97451952,83.108,83.081,12.03644635]
[1771553649854,0.2,83.11,83.09,3.76775661]
[1771553651858,0.2,83.11,83.091,12.03499777]
[1771553652976,2.97451952,83.127,83.1,3.76775661]
[1771553654075,2.97451952,83.133,83.101,12.03354953]
[1771553654658,2.97451952,83.133,83.11,3.76775661]
[1771553654878,2.97451952,83.133,83.101,12.03354953]
[1771553655274,2.97451952,83.133,83.1,3.76775661]
[1771553655470,2.97451952,83.129,83.091,30.08749443]
[1771553655669,2.97451952,83.119,83.08,3.76775661]
[1771553655978,2.97451952,83.119,83.081,15.9]
[1771553656279,2.97451952,83.119,83.09,3.76775661]
[1771553657472,2.97451952,83.117,83.09,3.76775661]
[1771553658681,2.97451952,83.115,83.082,12.03630148]
[1771553659267,2.97451952,83.115,83.09,3.76775661]
[1771553660982,2.97451952,83.115,83.091,27.93499777]
[1771553664782,2.97451952,83.113,83.091,15.9]
[1771553665377,2.97451952,83.113,83.092,12.03485293]
[1771553666997,2.97451952,83.113,83.092,27.93485293]
[1771553671888,2.97451952,83.113,83.093,0.02439987]
[1771553672772,2.97451952,83.113,83.093,15.92439987]
[1771553672976,2.97451952,83.113,83.093,15.92700045]
[1771553673177,2.97451952,83.118,83.095,0.02700045]
[1771553678795,2.97451952,83.118,83.097,0.03445118]
[1771553678994,2.97451952,83.118,83.098,15.9]
[1771553680503,2.97451952,83.118,83.099,12.07066133]
[1771553680677,2.97451952,83.118,83.099,12.03383915]
[1771553684807,2.97451952,83.118,83.101,12.03354953]
[1771553690003,2.97451952,83.116,83.1,8.57849106]
[1771553690200,2.72380348,83.109,83.071,2.82106361]
[1771553690397,2.72380348,83.109,83.073,2.82106361]
[1771553690593,2.72380348,83.115,83.081,2.82106361]
[1771553690800,2.72380348,83.116,83.081,2.82106361]
[1771553691100,30.07433446,83.128,83.091,2.82106361]
[1771553691101,14.7535595,83.128,83.091,2.82106361]
[1771553691299,2.72380348,83.134,83.101,2.82106361]
[1771553692208,2.72380348,83.132,83.103,2.82106361]
[1771553696713,2.72380348,83.13,83.105,2.82106361]
[1771553700310,2.72380348,83.13,83.111,2.82106361]
[1771553700492,2.72380348,83.137,83.111,2.82106361]
[1771553702104,12.02832716,83.138,83.111,2.82106361]
[1771553702489,12.02832716,83.138,83.101,3.1]
[1771553702490,2.87145723,83.148,83.113,2.79466801]
[1771553702701,30.06305741,83.159,83.121,2.79466801]
[1771553702702,2.87145723,83.153,83.121,2.79466801]
[1771553702997,2.87145723,83.153,83.112,12.03195687]
[1771553702998,2.87145723,83.153,83.131,2.79466801]
[1771553704021,12.02530123,83.158,83.131,2.79466801]
[1771553704592,2.87145723,83.158,83.133,2.79466801]
[1771553706117,2.87145723,83.149,83.116,2.79466801]
[1771553706292,2.87145723,83.129,83.093,12.03466912]
[1771553706494,3.75901244,83.13,83.082,2.79466801]
[1771553706495,2.87145723,83.107,83.082,2.79466801]
[1771553706697,2.87145723,83.099,83.077,2.79466801]
[1771553706995,3.75901244,83.13,83.071,12.03789529]
[1771553706996,48.09991891,83.161,83.091,0.28432314]
[1771553707315,48.09991891,83.161,83.09,3.75901244]
[1771553707316,2.61049111,83.129,83.101,2.65022218]
[1771553709015,2.61049111,83.127,83.101,2.65022218]
[1771553711620,3.75901244,83.13,83.103,2.65022218]
[1771553711790,12.02840301,83.137,83.11,3.75901244]
[1771553711996,12.02840301,83.137,83.111,2.65022218]
[1771553713121,6.36950355,83.14,83.111,2.65022218]
[1771553713290,12.02804941,83.139,83.111,2.65022218]
[1771553714026,2.61049111,83.138,83.113,2.65022218]
[1771553717797,2.61049111,83.138,83.115,2.65022218]
[1771553718795,2.61049111,83.136,83.115,2.65022218]
[1771553719018,2.61049111,83.136,83.107,2.65022218]
[1771553719318,2.61049111,83.129,83.108,12.03253597]
[1771553719496,2.61049111,83.129,83.109,2.65022218]
[1771553720517,2.61049111,83.129,83.111,2.65022218]
[1771553722099,2.61049111,83.129,83.103,2.65022218]
[1771553723306,2.61049111,83.129,83.105,2.65022218]
[1771553724619,3.75901244,83.14,83.105,2.65022218]
[1771553724821,2.61049111,83.139,83.105,2.65022218]
[1771553725521,2.61049111,83.138,83.107,2.65022218]
[1771553727629,6.36950355,83.15,83.111,2.65022218]
[1771553727923,2.61049111,83.155,83.121,2.65022218]
[1771553729427,2.61049111,83.149,83.123,2.65022218]
[1771553732128,2.61049111,83.149,83.125,2.65022218]
[1771553733745,2.61049111,83.149,83.124,12.03021991]
[1771553734034,2.61049111,83.149,83.111,2.65022218]
[1771553734231,2.61049111,83.147,83.115,2.65022218]
[1771553735726,2.61049111,83.145,83.115,2.65022218]
[1771553735932,2.61049111,83.145,83.111,2.65022218]
[1771553736829,2.61049111,83.145,83.12,3.75901244]
[1771553737022,2.61049111,83.145,83.122,2.59479786]
[1771553738417,2.45740923,83.15,83.124,2.59479786]
[1771553738622,12.02599845,83.154,83.124,2.59479786]
[1771553739139,2.45740923,83.159,83.131,2.59479786]
[1771553741345,12.02530123,83.158,83.131,2.59479786]
[1771553741540,2.45740923,83.157,83.131,2.59479786]
[1771553742723,2.45740923,83.155,83.122,12.03050937]
[1771553742935,2.45740923,83.149,83.122,2.59479786]
[1771553746824,2.45740923,83.147,83.124,2.59479786]
[1771553747229,12.02626865,83.152,83.131,2.59479786]
[1771553747827,2.45740923,83.151,83.131,2.59479786]
[1771553752346,12.02626865,83.152,83.131,2.59479786]
[1771553753655,2.45740923,83.153,83.131,2.59479786]
[1771553754754,2.45740923,83.152,83.131,2.59479786]
[1771553758838,2.45740923,83.152,83.131,5.69479786]
[1771553759045,2.45740923,83.152,83.132,2.59479786]
[1771553760453,2.40076521,83.15,83.132,2.59479786]
[1771553765678,2.40076521,83.15,83.126,3.1]
[1771553765679,2.34624554,83.148,83.126,3.1]
[1771553768577,2.31194287,83.139,83.126,3.1]
[1771553768757,2.31194287,83.139,83.119,2.36734157]
[1771553772598,12.02819408,83.138,83.119,2.36734157]
[1771553772800,2.27918926,83.137,83.119,2.36734157]
[1771553774000,2.27918926,83.137,83.12,2.36734157]
[1771553774784,12.02848344,83.136,83.12,2.36734157]
[1771553776203,2.24791475,83.135,83.12,2.36734157]
[1771553780507,12.02877282,83.134,83.12,2.36734157]
[1771553780684,12.02815358,83.139,83.12,2.36734157]
[1771553780884,14.24561601,83.143,83.12,2.36734157]
[1771553781195,14.23626564,83.157,83.122,2.36734157]